fUST/lending_fUST_20250526
["ID","MTS","AMOUNT","RATE_DAILY","PERIOD"]
[362355096,1748212243199,-430.0,0.00019726,2]
[362355099,1748212243212,-430.0,0.00019726,2]
[362355101,1748212243221,-430.0,0.00019726,2]
[362355104,1748212243231,-853.47,0.00019726,2]
[362355106,1748212243240,-430.0,0.00019726,2]
[362355108,1748212243249,-430.0,0.00019726,2]
[362355110,1748212243259,-430.0,0.00019726,2]
[362355112,1748212243268,-441.22,0.00019726,2]
[362355114,1748212243279,-430.0,0.00019726,2]
[362355116,1748212243288,-430.0,0.00019726,2]
[362355118,1748212243297,-430.0,0.00019726,2]
[362355119,1748212243307,-430.0,0.00019726,2]
[362355120,1748212243317,-430.0,0.00019726,2]
[362355121,1748212243326,-430.0,0.00019726,2]
[362355122,1748212243336,-430.0,0.00019726,2]
[362355123,1748212243345,-430.0,0.00019726,2]
[362355124,1748212243355,-430.0,0.00019726,2]
[362355125,1748212243364,-552.94,0.00019726,2]
[362355126,1748212243375,-430.0,0.00019726,2]
[362355127,1748212243385,-428.67864138,0.00019829,2]
[362355128,1748212243394,-500.0,0.00019855,2]
[362355129,1748212243404,-481.93218547,0.000199,2]
[362355130,1748212243414,-158.0,0.0002,2]
[362355131,1748212243423,-430.0,0.0002,2]
[362355132,1748212243432,-430.0,0.0002,2]
[362355134,1748212243442,-430.0,0.0002,2]
[362355135,1748212243452,-430.0,0.0002,2]
[362355136,1748212243463,-231.53618492,0.0002,2]
[362355137,1748212243473,-853.47,0.0002,2]
[362355138,1748212243482,-430.0,0.0002,2]
[362355140,1748212243492,-430.0,0.0002,2]
[362355142,1748212243502,-430.0,0.0002,2]
[362355143,1748212243511,-441.22,0.0002,2]
[362355146,1748212243521,-430.0,0.0002,2]
[362355148,1748212243531,-430.0,0.0002,2]
[362355150,1748212243540,-247.63335453,0.0002,2]
[362355152,1748212243550,-430.0,0.0002,2]
[362355154,1748212243559,-430.0,0.0002,2]
[362355156,1748212243569,-430.0,0.0002,2]
[362355158,1748212243578,-430.0,0.0002,2]
[362355160,1748212243587,-430.0,0.0002,2]
[362355162,1748212243596,-430.0,0.0002,2]
[362355164,1748212243606,-552.94,0.0002,2]
[362355166,1748212243616,-248.05319975,0.0002,2]
[362355168,1748212243625,-481.93218547,0.00020072,2]
[362355170,1748212243635,-185.96615559,0.00020145,2]
[362355172,1748212243644,-404.0,0.00020183,2]
[362355174,1748212243654,-332.673649,0.00020187,2]
[362355176,1748212243663,-481.93218547,0.00020245,2]
[362355178,1748212243672,-430.0,0.00020273,2]
[362355180,1748212243682,-430.0,0.00020273,2]
[362355182,1748212243691,-430.0,0.00020273,2]
[362355184,1748212243701,-430.0,0.00020273,2]
[362355186,1748212243713,-853.47,0.00020273,2]
[362355188,1748212243724,-430.0,0.00020273,2]
[362355190,1748212243736,-430.0,0.00020273,2]
[362355192,1748212243746,-430.0,0.00020273,2]
[362355194,1748212243755,-441.22,0.00020273,2]
[362355196,1748212243766,-430.0,0.00020273,2]
[362355198,1748212243776,-268.20167266,0.00020273,2]
[362355200,1748212243786,-430.0,0.00020273,2]
[362355202,1748212243795,-430.0,0.00020273,2]
[362355204,1748212243806,-430.0,0.00020273,2]
[362355206,1748212243815,-430.0,0.00020273,2]
[362355208,1748212243825,-430.0,0.00020273,2]
[362355210,1748212243835,-430.0,0.00020273,2]
[362355212,1748212243844,-552.94,0.00020273,2]
[362355214,1748212243854,-481.93218547,0.00020417,3]
[362355216,1748212243863,-215.0738,0.00020467,2]
[362355219,1748212243872,-2200.0,0.00020534,2]
[362355221,1748212243882,-430.0,0.00020547,2]
[362355223,1748212243892,-430.0,0.00020547,2]
[362355225,1748212243901,-430.0,0.00020547,2]
[362355227,1748212243910,-430.0,0.00020547,2]
[362355229,1748212243919,-853.47,0.00020547,2]
[362355231,1748212243929,-430.0,0.00020547,2]
[362355233,1748212243938,-430.0,0.00020547,2]
[362355235,1748212243948,-430.0,0.00020547,2]
[362355237,1748212243960,-441.22,0.00020547,2]
[362355239,1748212243969,-430.0,0.00020547,2]
[362355241,1748212243979,-430.0,0.00020547,2]
[362355242,1748212243988,-430.0,0.00020547,2]
[362355243,1748212243999,-430.0,0.00020547,2]
[362355244,1748212244009,-430.0,0.00020547,2]
[362355245,1748212244018,-430.0,0.00020547,2]
[362355246,1748212244028,-430.0,0.00020547,2]
[362355247,1748212244042,-552.94,0.00020547,2]
[362355248,1748212244053,-481.93218547,0.0002059,3]
[362355249,1748212244062,-481.93218547,0.00020762,3]
[362355250,1748212244073,-430.0,0.00020821,2]
[362355251,1748212244083,-430.0,0.00020821,2]
[362355252,1748212244093,-430.0,0.00020821,2]
[362355253,1748212244102,-430.0,0.00020821,2]
[362355254,1748212244112,-853.47,0.00020821,2]
[362355255,1748212244122,-430.0,0.00020821,2]
[362355256,1748212244131,-430.0,0.00020821,2]
[362355257,1748212244142,-430.0,0.00020821,2]
[362355258,1748212244152,-441.22,0.00020821,2]
[362355259,1748212244162,-430.0,0.00020821,2]
[362355261,1748212244172,-430.0,0.00020821,2]
[362355262,1748212244181,-430.0,0.00020821,2]
[362355264,1748212244191,-430.0,0.00020821,2]
[362355266,1748212244200,-430.0,0.00020821,2]
[362355267,1748212244214,-430.0,0.00020821,2]
[362355268,1748212244223,-430.0,0.00020821,2]
[362355269,1748212244233,-552.94,0.00020821,2]
[362355270,1748212244242,-622.75,0.00020856,2]
[362355271,1748212244251,-481.93218547,0.00020934,4]
[362355272,1748212244260,-185.96615559,0.00020937,2]
[362355273,1748212244270,-168.91,0.0002107,2]
[362355274,1748212244280,-430.0,0.00021095,2]
[362355275,1748212244290,-430.0,0.00021095,2]
[362355276,1748212244299,-456.89638474,0.00021095,2]
[362355277,1748212244309,-352.79677465,0.00021095,2]
[362355278,1748212244319,-853.47,0.00021095,2]
[362355279,1748212244329,-430.0,0.00021095,2]
[362355280,1748212244339,-430.0,0.00021095,2]
[362355281,1748212244348,-430.0,0.00021095,2]
[362355282,1748212244359,-441.22,0.00021095,2]
[362355283,1748212244368,-430.0,0.00021095,2]
[362355284,1748212244378,-430.0,0.00021095,2]
[362355285,1748212244387,-430.0,0.00021095,2]
[362355286,1748212244397,-430.0,0.00021095,2]
[362355287,1748212244407,-430.0,0.00021095,2]
[362355288,1748212244417,-430.0,0.00021095,2]
[362355289,1748212244426,-430.0,0.00021095,2]
[362355290,1748212244436,-552.94,0.00021095,2]
[362355291,1748212244446,-481.93218547,0.00021107,4]
[362355292,1748212244458,-481.93218547,0.00021279,5]
[362355293,1748212244468,-430.0,0.00021369,2]
[362355294,1748212244478,-152.64168551,0.00021369,2]
[362355295,1748212244487,-853.47,0.00021369,2]
[362355296,1748212244499,-430.0,0.00021369,2]
[362355297,1748212244509,-430.0,0.00021369,2]
[362355298,1748212244518,-430.0,0.00021369,2]
[362355299,1748212244528,-441.22,0.00021369,2]
[362355300,1748212244538,-430.0,0.00021369,2]
[362355301,1748212244547,-259.22362152,0.00021369,2]
[362355302,1748212244558,-430.0,0.00021369,2]
[362355303,1748212244567,-430.0,0.00021369,2]
[362355304,1748212244577,-430.0,0.00021369,2]
[362355305,1748212244586,-430.0,0.00021369,2]
[362355306,1748212244596,-430.0,0.00021369,2]
[362355307,1748212244605,-552.94,0.00021369,2]
[362355308,1748212244615,-481.93218547,0.00021452,5]
[362355309,1748212244626,-481.93218547,0.00021624,5]
[362355310,1748212244636,-430.0,0.00021643,2]
[362355311,1748212244646,-853.47,0.00021643,2]
[362355312,1748212244655,-512.00835335,0.00021643,2]
[362355313,1748212244665,-430.0,0.00021643,2]
[362355314,1748212244675,-477.22026165,0.00021643,2]
[362355315,1748212244685,-441.22,0.00021643,2]
[362355316,1748212244695,-430.0,0.00021643,2]
[362355317,1748212244704,-430.0,0.00021643,2]
[362355318,1748212244715,-430.0,0.00021643,2]
[362355319,1748212244726,-430.0,0.00021643,2]
[362355320,1748212244736,-430.0,0.00021643,2]
[362355321,1748212244746,-430.0,0.00021643,2]
[362355322,1748212244756,-552.94,0.00021643,2]
[362355323,1748212244768,-2000.0,0.000217,2]
[362355324,1748212244781,-2000.0,0.000217,2]
[362355325,1748212244790,-185.96615559,0.0002173,2]
[362355326,1748212244800,-481.93218547,0.00021797,6]
[362355327,1748212244810,-1325.58267,0.000218,5]
[362355328,1748212244820,-1000.0,0.0002182,5]
[362355329,1748212244829,-223.0315306,0.00021836,2]
[362355330,1748212244839,-1000.0,0.0002184,5]
[362355331,1748212244849,-1000.0,0.0002186,5]
[362355332,1748212244859,-1000.0,0.0002188,5]
[362355333,1748212244868,-3315.29,0.000219,2]
[362355334,1748212244878,-1000.0,0.000219,5]
[362355335,1748212244888,-501.39450779,0.000219,2]
[362355336,1748212244897,-500.0,0.000219,2]
[362355337,1748212244907,-500.0,0.000219,2]
[362355338,1748212244917,-500.0,0.000219,2]
[362355339,1748212244926,-500.0,0.000219,2]
[362355340,1748212244936,-600.0,0.000219,2]
[362355341,1748212244947,-617.59,0.00021907,10]
[362355342,1748212244959,-1177.7,0.00021907,10]
[362355343,1748212244968,-981.41,0.00021907,10]
[362355344,1748212244978,-439.00364197,0.00021916,2]
[362355345,1748212244987,-500.0,0.00021916,2]
[362355346,1748212244997,-500.0,0.00021916,2]
[362355347,1748212245007,-500.0,0.00021916,2]
[362355348,1748212245017,-500.0,0.00021916,2]
[362355349,1748212245027,-500.0,0.00021916,2]
[362355350,1748212245038,-175.78169199,0.00021916,2]
[362355351,1748212245048,-500.0,0.00021916,2]
[362355352,1748212245058,-500.0,0.00021916,2]
[362355353,1748212245070,-500.0,0.00021916,2]
[362355354,1748212245080,-593.08569734,0.00021916,2]
[362355355,1748212245090,-500.0,0.00021916,2]
[362355356,1748212245100,-500.0,0.00021916,2]
[362355357,1748212245111,-500.0,0.00021917,2]
[362355358,1748212245121,-437.13509401,0.00021917,2]
[362355359,1748212245131,-853.47,0.00021917,2]
[362355360,1748212245141,-430.0,0.00021917,2]
[362355361,1748212245150,-4180.24,0.00021917,2]
[362355362,1748212245160,-441.22,0.00021917,2]
[362355363,1748212245170,-430.0,0.00021917,2]
[362355364,1748212245180,-527.09390671,0.00021917,2]
[362355365,1748212245190,-430.0,0.00021917,2]
[362355366,1748212245200,-430.0,0.00021917,2]
[362355367,1748212245212,-430.0,0.00021917,2]
[362355368,1748212245222,-254.65598689,0.00021917,2]
[362355369,1748212245231,-552.94,0.00021917,2]
[362355370,1748212245241,-481.93218547,0.00021969,6]
[362355371,1748212245252,-500.0,0.00022011,2]
[362355372,1748212245264,-500.0,0.00022011,2]
[362355373,1748212245275,-1712.96,0.00022035,3]
[362355374,1748212245285,-856.48,0.00022035,3]
[362355375,1748212245295,-2917.06,0.00022037,3]
[362355376,1748212245305,-500.0,0.00022047,2]
[362355377,1748212245315,-711.71,0.00022083,2]
[362355378,1748212245325,-481.93218547,0.00022141,6]
[362355379,1748212245338,-853.47,0.00022191,2]
[362355380,1748212245348,-430.0,0.00022191,2]
[362355381,1748212245359,-441.22,0.00022191,2]
[362355382,1748212245368,-430.0,0.00022191,2]
[362355383,1748212245378,-430.0,0.00022191,2]
[362355384,1748212245388,-430.0,0.00022191,2]
[362355385,1748212245399,-181.44806429,0.00022191,2]
[362355386,1748212245409,-552.94,0.00022191,2]
[362355387,1748212245420,-481.93218547,0.00022314,7]
[362355388,1748212245430,-2000.0,0.000224,2]
[362355389,1748212245440,-516.66394945,0.00022448,2]
[362355390,1748212245450,-1000.0,0.00022448,2]
[362355391,1748212245460,-1000.0,0.00022448,2]
[362355393,1748212245470,-1000.0,0.00022448,2]
[362355394,1748212245480,-1200.0,0.00022448,2]
[362355395,1748212245490,-297.29849381,0.00022458,2]
[362355396,1748212245499,-500.0,0.00022458,2]
[362355397,1748212245509,-500.0,0.00022465,2]
[362355398,1748212245519,-853.47,0.00022465,2]
[362355399,1748212245528,-430.0,0.00022465,2]
[362355400,1748212245537,-441.22,0.00022465,2]
[362355401,1748212245547,-430.0,0.00022465,2]
[362355402,1748212245557,-430.0,0.00022465,2]
[362355403,1748212245567,-430.0,0.00022465,2]
[362355404,1748212245577,-552.94,0.00022465,2]
[362355405,1748212245586,-481.93218547,0.00022486,7]
[362355406,1748212245596,-185.96615559,0.00022522,2]
[362355407,1748212245606,-428.24,0.00022549,3]
[362355408,1748212245615,-1000.0,0.00022559,2]
[362355409,1748212245625,-1000.0,0.00022559,2]
[362355410,1748212245635,-481.93218547,0.00022659,7]
[362355411,1748212245645,-2000.0,0.000227,2]
[362355413,1748212245654,-2000.0,0.000227,2]
[362355415,1748212245664,-853.47,0.00022739,2]
[362355417,1748212245674,-430.0,0.00022739,2]
[362355419,1748212245683,-441.22,0.00022739,2]
[362355421,1748212245693,-430.0,0.00022739,2]
[362355423,1748212245703,-430.0,0.00022739,2]
[362355425,1748212245713,-525.90374362,0.00022739,2]
[362355427,1748212245723,-552.94,0.00022739,2]
[362355429,1748212245735,-481.93218547,0.00022831,8]
[362355431,1748212245744,-1331.212154,0.00022996,2]
[362355433,1748212245754,-1500.0,0.00022996,2]
[362355435,1748212245764,-1500.0,0.00022996,2]
[362355437,1748212245774,-1800.0,0.00022996,2]
[362355439,1748212245784,-481.93218547,0.00023003,8]
[362355441,1748212245793,-500.0,0.00023013,2]
[362355443,1748212245803,-853.47,0.00023013,2]
[362355445,1748212245813,-259.51403489,0.00023013,2]
[362355447,1748212245823,-441.22,0.00023013,2]
[362355449,1748212245832,-430.0,0.00023013,2]
[362355451,1748212245843,-430.0,0.00023013,2]
[362355453,1748212245853,-552.94,0.00023013,2]
[362355455,1748212245862,-363.8823352,0.00023096,2]
[362355457,1748212245872,-363.8823352,0.00023096,2]
[362355459,1748212245882,-363.8823352,0.00023096,2]
[362355476,1748212246034,-363.8823352,0.00023096,2]
[362355478,1748212246044,-638.9691425,0.00023096,2]
[362355480,1748212246054,-776.62884264,0.00023107,2]
[362355482,1748212246064,-1500.0,0.00023107,2]
[362355484,1748212246074,-481.93218547,0.00023176,8]
[362355486,1748212246083,-404.0,0.00023183,2]
[362355488,1748212246093,-500.0,0.0002319,2]
[362355490,1748212246103,-231.28369723,0.00023205,2]
[362355492,1748212246113,-506.826248,0.00023217,2]
[362355494,1748212246124,-853.47,0.00023287,2]
[362355496,1748212246134,-441.22,0.00023287,2]
[362355498,1748212246143,-430.0,0.00023287,2]
[362355500,1748212246153,-430.0,0.00023287,2]
[362355502,1748212246162,-552.94,0.00023287,2]
[362355504,1748212246172,-800.67,0.0002331,2]
[362355506,1748212246182,-185.96615559,0.00023315,2]
[362355508,1748212246192,-481.93218547,0.00023348,9]
[362355510,1748212246201,-185.0497304,0.0002337,2]
[362355512,1748212246211,-154.2938119,0.0002337,2]
[362355514,1748212246221,-158.2750078,0.0002337,2]
[362355516,1748212246230,-316.5500156,0.0002337,2]
[362355518,1748212246240,-352.4077528,0.0002337,2]
[362355520,1748212246250,-158.2750078,0.0002337,2]
[362355522,1748212246260,-158.2750078,0.0002337,2]
[362355524,1748212246269,-162.1697547,0.0002337,2]
[362355526,1748212246279,-2000.0,0.000234,2]
[362355528,1748212246288,-3425.92,0.00023405,3]
[362355530,1748212246298,-1712.96,0.00023405,3]
[362355532,1748212246307,-5834.12,0.00023407,3]
[362355534,1748212246317,-200.0,0.00023465,3]
[362355536,1748212246326,-481.93218547,0.00023521,9]
[362355537,1748212246336,-2000.0,0.00023544,2]
[362355539,1748212246345,-2000.0,0.00023544,2]
[362355541,1748212246355,-2400.0,0.00023544,2]
[362355543,1748212246365,-500.0,0.00023561,2]
[362355545,1748212246374,-853.47,0.00023561,2]
[362355547,1748212246385,-441.22,0.00023561,2]
[362355548,1748212246395,-430.0,0.00023561,2]
[362355549,1748212246404,-166.33072916,0.00023561,2]
[362355550,1748212246413,-552.94,0.00023561,2]
[362355551,1748212246423,-2000.0,0.00023655,2]
[362355552,1748212246432,-2870.1083395,0.00023691,2]
[362355553,1748212246443,-481.93218547,0.00023693,9]
[362355554,1748212246453,-2000.0,0.000237,2]
[362355555,1748212246463,-2000.0,0.000237,2]
[362355556,1748212246472,-12500.0,0.00023747,3]
[362355557,1748212246482,-12500.0,0.00023756,3]
[362355558,1748212246492,-12500.0,0.00023765,3]
[362355559,1748212246501,-825.44,0.00023772,2]
[362355560,1748212246511,-12500.0,0.00023773,3]
[362355561,1748212246521,-12500.0,0.00023782,3]
[362355562,1748212246530,-12500.0,0.00023791,3]
[362355563,1748212246540,-663.15891423,0.00023791,3]
[362355564,1748212246549,-12500.0,0.00023791,3]
[362355565,1748212246559,-12500.0,0.000238,3]
[362355566,1748212246569,-12500.0,0.000238,3]
[362355567,1748212246579,-160.0,0.000238,3]
[362355568,1748212246588,-160.0,0.000238,3]
[362355569,1748212246598,-12500.0,0.00023809,3]
[362355570,1748212246607,-12500.0,0.00023809,3]
[362355571,1748212246617,-160.0,0.0002381,3]
[362355572,1748212246627,-12500.0,0.00023817,3]
[362355573,1748212246636,-12500.0,0.00023817,3]
[362355574,1748212246648,-12500.0,0.00023826,3]
[362355575,1748212246657,-12500.0,0.00023826,3]
[362355576,1748212246668,-12500.0,0.00023835,3]
[362355577,1748212246678,-12500.0,0.00023835,3]
[362355578,1748212246687,-12500.0,0.00023835,3]
[362355579,1748212246697,-3703.57756529,0.00023835,3]
[362355580,1748212246708,-12500.0,0.00023835,3]
[362355581,1748212246718,-853.47,0.00023835,2]
[362355582,1748212246730,-441.22,0.00023835,2]
[362355583,1748212246743,-518.64573307,0.00023835,2]
[362355584,1748212246752,-552.94,0.00023835,2]
[362355585,1748212246762,-481.93218547,0.00023866,10]
[362355586,1748212246771,-1501.17402532,0.0002387,2]
[362355587,1748212246781,-825.44,0.00023872,5]
[362355588,1748212246790,-419519.62594957,0.000239,2]
[362355589,1748212246806,-5418.5,0.000239,2]
[362355590,1748212247152,-430.0,0.00019178,2]
[362355591,1748212247162,-430.0,0.00019452,2]
[362355592,1748212247172,-430.0,0.00019726,2]
[362355593,1748212247181,-249.63,0.0002,2]
[362355594,1748212247191,-500.0,0.00021916,2]
[362355595,1748212247201,-500.0,0.00021916,2]
[362355596,1748212247211,-214.12,0.00022986,3]
[362355597,1748212247220,-423.00916439,0.00023405,3]
[362355598,1748212247230,-576.54913997,0.000239,2]
[362355599,1748212374685,-2214.0,0.00018986,2]
[362355602,1748212627707,297.0,0.00013699,2]
[362355603,1748212644594,-1946.20257847,0.00013699,2]
[362355609,1748212793032,165.0,0.00013599,2]
[362355610,1748212832185,-0.05441364,0.00013599,2]
[362355637,1748213432157,-299.406284,0.00013699,2]
[362355639,1748213432168,-190.09,0.00017825,2]
[362355641,1748213432178,-319.39349137,0.00018502,2]
[362355643,1748213432189,-7223.44526843,0.00018502,2]
[362355645,1748213432199,-185.96615559,0.00019078,2]
[362355647,1748213432210,-237.62,0.00019098,2]
[362355650,1748213432219,-211.39840152,0.00019098,2]
[362355652,1748213432230,-207.4,0.00019098,2]
[362355654,1748213432243,-300.0,0.00019175,2]
[362355656,1748213432253,-229.0,0.00019177,2]
[362355658,1748213432263,-239.04821088,0.00019177,2]
[362355660,1748213432272,-500.0,0.00019178,2]
[362355661,1748213432282,-430.0,0.00019178,2]
[362355663,1748213432292,-430.0,0.00019178,2]
[362355664,1748213432302,-430.0,0.00019178,2]
[362355666,1748213432311,-334.88574428,0.00019178,2]
[362355667,1748213432320,-430.0,0.00019178,2]
[362355668,1748213432331,-430.0,0.00019178,2]
[362355669,1748213432340,-430.0,0.00019178,2]
[362355671,1748213432353,-234.99108199,0.00019178,2]
[362355673,1748213432365,-195.00891801,0.00019178,2]
[362355675,1748213432375,-430.0,0.00019178,2]
[362355677,1748213432384,-155.82384521,0.00019178,2]
[362355678,1748213432395,-430.0,0.00019178,2]
[362355679,1748213432404,-400.0,0.00019178,2]
[362355680,1748213432413,-198.02670678,0.00019178,2]
[362355703,1748213438225,-231.97329322,0.00019178,2]
[362355705,1748213438235,-430.0,0.00019178,2]
[362355707,1748213438247,-102.31478293,0.00019178,2]
[362355930,1748213440532,-327.68521707,0.00019178,2]
[362355932,1748213440542,-430.0,0.00019178,2]
[362355934,1748213440552,-430.0,0.00019178,2]
[362355936,1748213440561,-430.0,0.00019178,2]
[362355938,1748213440570,-430.0,0.00019178,2]
[362355940,1748213440580,-430.0,0.00019178,2]
[362355942,1748213440589,-430.0,0.00019178,2]
[362355945,1748213440599,-430.0,0.00019178,2]
[362355946,1748213440608,-470.0,0.00019178,2]
[362355949,1748213440618,-430.0,0.00019178,2]
[362355951,1748213440628,-186.6006448,0.00019178,2]
[362355953,1748213440638,-259.68836517,0.00019178,2]
[362355954,1748213440647,-430.0,0.00019178,2]
[362355956,1748213440656,-444.37,0.00019178,2]
[362355958,1748213440665,-430.0,0.00019178,2]
[362355960,1748213440675,-430.0,0.00019178,2]
[362355963,1748213440684,-405.14308702,0.00019178,2]
[362355965,1748213440698,-233.67553299,0.00019178,2]
[362355967,1748213440707,-430.0,0.00019178,2]
[362355969,1748213440717,-430.0,0.00019178,2]
[362355971,1748213440731,-430.0,0.00019178,2]
[362355973,1748213440742,-430.0,0.00019178,2]
[362355975,1748213440752,-430.0,0.00019178,2]
[362355977,1748213440762,-430.0,0.00019178,2]
[362355979,1748213440771,-430.0,0.00019178,2]
[362355981,1748213440781,-430.0,0.00019178,2]
[362355983,1748213440798,-430.0,0.00019178,2]
[362355984,1748213440813,-430.0,0.00019178,2]
[362355985,1748213440823,-430.0,0.00019178,2]
[362355986,1748213440833,-430.0,0.00019178,2]
[362355987,1748213440843,-356.24062358,0.00019178,2]
[362355988,1748213440859,-470.0,0.00019178,2]
[362355989,1748213440868,-430.0,0.00019178,2]
[362355990,1748213440878,-416.11062038,0.00019178,2]
[362355991,1748213440892,-13.88937962,0.00019178,2]
[362355993,1748213440902,-430.0,0.00019178,2]
[362355994,1748213440912,-406.52087163,0.00019178,2]
[362356020,1748213443307,-23.47912837,0.00019178,2]
[362356021,1748213443317,-430.0,0.00019178,2]
[362356022,1748213443328,-430.0,0.00019178,2]
[362356023,1748213443338,-430.0,0.00019178,2]
[362356024,1748213443348,-430.0,0.00019178,2]
[362356025,1748213443359,-430.0,0.00019178,2]
[362356026,1748213443369,-430.0,0.00019178,2]
[362356027,1748213443378,-303.4194117,0.00019178,2]
[362356028,1748213443388,-430.0,0.00019178,2]
[362356030,1748213443397,-450.0,0.00019178,2]
[362356031,1748213443408,-430.0,0.00019178,2]
[362356032,1748213443417,-27.12849798,0.00019178,2]
[362356052,1748213446393,-426.44449646,0.00019178,2]
[362356053,1748213446403,-430.0,0.00019178,2]
[362356054,1748213446413,-430.0,0.00019178,2]
[362356055,1748213446423,-430.0,0.00019178,2]
[362356056,1748213446434,-430.0,0.00019178,2]
[362356057,1748213446446,-430.0,0.00019178,2]
[362356058,1748213446456,-277.762164,0.00019178,2]
[362356059,1748213446467,-14519.00684693,0.00019178,2]
[362356060,1748213446480,-946.1573606,0.00019178,2]
[362356061,1748213446493,-430.0,0.00019452,2]
[362356062,1748213446503,-87.12441166,0.00019452,2]
[362356070,1748214147711,500.0,0.00024657,120]
[362356071,1748214252750,167.0,0.00013699,2]
[362356072,1748214254760,47412.52238597,0.0002,30]
[362356073,1748214435688,-229.41044137,0.00013699,2]
[362356074,1748214438352,-164.67862398,0.00013699,2]
[362356122,1748214632494,-90.64645948,0.00013699,2]
[362356125,1748214632504,-284.435969,0.00013699,2]
[362356127,1748214632513,-218.25,0.00016535,2]
[362356129,1748214632524,-362.8256052,0.00017774,2]
[362356131,1748214632533,-291.0,0.00017807,2]
[362356133,1748214632543,-300.0,0.00017983,2]
[362356135,1748214632552,-165.0,0.00017983,2]
[362356137,1748214632561,-545.0,0.00017983,2]
[362356139,1748214632571,-2950.79757903,0.00017984,2]
[362356358,1748214638455,-300.0,0.00017983,2]
[362356360,1748214638465,-12358.37956851,0.00017984,2]
[362356362,1748214638477,-9590.82285246,0.00017984,2]
[362356364,1748214638487,-252.316394,0.00018371,2]
[362356366,1748214638497,-159.52550825,0.00018899,2]
[362356367,1748214638506,-348.64409203,0.000189,2]
[362356368,1748214638516,-24029.36616825,0.000189,2]
[362356369,1748214638525,-293.10280765,0.000189,2]
[362356370,1748214638534,-174.62516118,0.00018978,2]
[362356371,1748214638544,-252.21511058,0.00019078,2]
[362356372,1748214638554,-363.76,0.00019079,2]
[362356373,1748214638563,-293.10280736,0.00019107,2]
[362356374,1748214638573,-252.21511056,0.00019147,2]
[362356375,1748214638583,-274.31375634,0.00019167,3]
[362356376,1748214638593,-12652.24558203,0.00019167,3]
[362356377,1748214638602,-356.87,0.00019168,3]
[362356378,1748214638611,-178.43,0.00019168,3]
[362356379,1748214638622,-535.32,0.00019168,3]
[362356380,1748214638632,-500.0,0.00019177,2]
[362356381,1748214638644,-573.36972498,0.00019177,2]
[362356382,1748214638653,-500.0,0.00019177,2]
[362356383,1748214638663,-500.0,0.00019177,2]
[362356384,1748214638672,-596.26921637,0.00019177,2]
[362356386,1748214638682,-27590.25458199,0.00019178,2]
[362356388,1748214638692,-22267.18637773,0.00019178,3]
[362356390,1748214638701,-430.0,0.00019178,2]
[362356392,1748214638715,-1000.0,0.00019178,2]
[362356394,1748214638725,-450.0,0.00019178,2]
[362356396,1748214638735,-450.0,0.00019178,2]
[362356398,1748214638745,-430.0,0.00019178,2]
[362356400,1748214638754,-430.0,0.00019178,2]
[362356402,1748214638764,-430.0,0.00019178,2]
[362356404,1748214638773,-430.0,0.00019178,2]